Cogmind - Beta 15 @@@ ROGUE MODE // 2025.07.31 @ 09:23:55 Player: Aon Result: Destroyed by Y-45 Defender with Beam Rifle Performance ------------- Evolutions (2) 1000 Regions Visited (5) 1000 Robots Destroyed (13) 65 Value Destroyed (316) 316 Prototype IDs (1) 20 Alien Tech Used (0) 0 Bonus (300) 300 TOTAL SCORE: 2701 Bonus ------- Aligned with FarCom 300 Cogmind --------- Core Integrity 0/550 Matter 226/300 Energy 294/300 System Corruption 0% Temperature Warm (107) Movement Flying (31) Location -8/Materials Parts ------- > --- POWER (3) -------- Nuclear Core Light Nuclear Core > --- PROPULSION (4) --- Xenon Bombardment Thruster Xenon Bombardment Thruster Xenon Bombardment Thruster Xenon Bombardment Thruster > --- UTILITY (2) ------ Modified TNC Improved Power Shielding > --- WEAPON (2) ------- Gauss Rifle Gauss Rifle > --- INVENTORY (5) ---- Compact Matter Pod (0) Peak State ------------ > --- POWER ------------ Nuclear Core Light Nuclear Core > --- PROPULSION ------- Xenon Bombardment Thruster Xenon Bombardment Thruster Xenon Bombardment Thruster Xenon Bombardment Thruster > --- UTILITY ---------- Modified TNC Improved Power Shielding > --- WEAPON ----------- Gauss Rifle Gauss Rifle > --- INVENTORY -------- Compact Matter Pod [Rating: 39] Favorites ----------- Power Light Ion Engine Engine Light Ion Engine Power Core Light Nuclear Core Propulsion Light Treads Treads Light Treads Leg Aluminum Leg Flight Unit Xenon Bombardment Thruster Utility Small Storage Unit Storage Small Storage Unit Processor Modified TNC Protection Propulsion Shielding Weapon Assault Rifle Energy Gun Pulse Rifle Energy Cannon EM Pulse Cannon Ballistic Gun Assault Rifle Launcher Rocket Launcher Special Weapon Mining Laser Build | -11 -10 -10 -10 -9 -8 ------- Run | Yrd Mat Min Exi Min Mat Slots Evolved 4 | . . . . . 4 Power 2 | . . . . . 2 Propulsion 2 | . . . . . 2 Utility . | . . . . . . Weapon . | . . . . . . Parts Attached 36 | 6 . 2 1 1 26 Power 9 | 1 . . . 1 7 Engine 4 | 1 . . . 1 2 Core 5 | . . . . . 5 Reactor . | . . . . . . Propulsion 10 | 2 . . . . 8 Treads 2 | 2 . . . . . Leg 4 | . . . . . 4 Wheel . | . . . . . . Hover . | . . . . . . Flight 4 | . . . . . 4 Utility 8 | 1 . 1 1 . 5 Device 1 | . . . . . 1 Storage 2 | 1 . . . . 1 Processor 1 | . . . 1 . . Hackware . | . . . . . . Protection 4 | . . 1 . . 3 Artifact . | . . . . . . Weapon 9 | 2 . 1 . . 6 Energy Gun 2 | . . . . . 2 Energy Cannon 1 | . . . . . 1 Ballistic Gun 4 | 2 . . . . 2 Ballistic Cannon . | . . . . . . Launcher 1 | . . 1 . . . Special Weapon 1 | . . . . . 1 Impact Weapon . | . . . . . . Slashing Weapon . | . . . . . . Piercing Weapon . | . . . . . . Special Melee Weapon . | . . . . . . Unidentified Prototypes 1 | . . . 1 . . Parts Lost 19 | . . . . . 19 Power 6 | . . . . . 6 Propulsion 6 | . . . . . 6 Utility 3 | . . . . . 3 Weapon 4 | . . . . . 4 Highest Loss Streak 18 | . . . . . 18 To Critical Strikes . | . . . . . . Average Backups 3 | . 1 2 5 4 1 Power 1 | . 1 1 2 1 . Propulsion . | . . . . 1 . Utility . | . . . 1 . . Weapon 1 | . . 1 2 1 . Tool/Special . | . . . . . . Unused Backups 1 | . . . 1 . . Power . | . . . . . . Propulsion . | . . . . . . Utility 1 | . . . 1 . . Weapon . | . . . . . . Tool/Special . | . . . . . . Average Slot Usage (%) 87 | . 85 92 100 100 49 Engine 11 | . 14 14 14 14 3 Core 1 | . . . . . 4 Treads 22 | . 28 28 28 28 4 Storage 10 | . 14 14 14 . 2 Processor 3 | . . . . 14 9 Protection 10 | . . 7 14 14 5 Ballistic Gun 12 | . 28 16 14 14 3 Launcher 10 | . . 11 14 14 1 Peak Build Rating 39 | 6 6 8 13 13 39 Average Rating 9 | 4 6 7 8 13 15 On Entrance 7 | . 6 6 8 13 13 Naked Turns . | . . . . . . Heaviest Build 26 | 12 12 15 15 12 26 Greatest Support 40 | 40 40 40 40 40 24 Greatest Overweight (x) 4 | . . . . . 4 Average Overweight (x) . | . . . . . 1 Largest Inventory Capacity 8 | 8 8 8 8 5 5 Average Capacity 7 | 6 8 8 7 5 5 Most Carried 6 | 1 1 5 6 5 5 Average Carried 3 | . 1 3 5 4 1 Final Capacity 8 | 8 8 8 5 5 5 Final Carried 5 | 1 1 5 4 5 1 Class Distribution -------------------- 98% | Mutant Dominant Class ---------------- Mutant | -10/Materials Mutant | -10/Mines Mutant | -10/Exiles Mutant | -9/Mines Mutant | -8/Materials Resources | -11 -10 -10 -10 -9 -8 ----------- Run | Yrd Mat Min Exi Min Mat Matter Collected 515 | 190 . 64 . 62 199 Remotely . | . . . . . . Salvage Created 293 | . . . . 88 205 Parts 26 | . . . . 7 19 Haulers Intercepted . | . . . . . . Recyclers Shooed . | . . . . . . Parts Field Recycled . | . . . . . . Retrieved Matter . | . . . . . . Parts Self-Destructed . | . . . . . . Prevented . | . . . . . . Kills | -11 -10 -10 -10 -9 -8 ------- Run | Yrd Mat Min Exi Min Mat Combat Hostiles Destroyed 8 | . . . . 3 5 Guns 2 | . . . . 1 1 Cannons 2 | . . . . . 2 AOE 4 | . . . . 2 2 Classes Destroyed 4 | . . . . 1 3 Worker 2 | . . . . . 2 Builder 3 | . . . . . 3 Swarmer 2 | . . . . . 2 Grunt 6 | . . . . 3 3 Best Kill Streak 8 | . . . . 3 8 Combat Bots Only 3 | . . . . 3 3 Max Kills in Single Turn 2 | . . . . 2 2 Gunslinging . | . . . . . . Exploded 2 | . . . . 2 2 Melee . | . . . . . . Uniques/NPCs Destroyed . | . . . . . . Combat | -11 -10 -10 -10 -9 -8 -------- Run | Yrd Mat Min Exi Min Mat Hostile Shots Fired 227 | . 1 . . 15 211 Missed 72 | . . . . 7 65 Hits 155 | . 1 . . 8 146 Projectile 155 | . 1 . . 8 146 AOE 1 | . . . . . 1 Critical Strikes 1 | . . . . . 1 Damage Taken 2423 | . 54 . . 111 2258 Core 562 | . . . . . 562 Absorbed by Shields . | . . . . . . Redirected to Shielding 25 | . . . . 16 9 Core Remaining (%) 100 | 100 . . . 100 . Volleys Fired 12 | . . . . 3 9 Largest 2 | . . . . 2 2 Hottest 63 | . . . . 53 63 Shots Fired 22 | . . . . 6 16 Gun 10 | . . . . 3 7 Cannon 2 | . . . . . 2 Launcher 10 | . . . . 3 7 Special . | . . . . . . Kinetic 10 | . . . . 3 7 Thermal . | . . . . . . Explosive 10 | . . . . 3 7 Electromagnetic 2 | . . . . . 2 Robot Hit Streak 5 | . . . . 1 5 Robot Miss Streak 2 | . . . . 2 1 Penetration Max . | . . . . . . Secondary Targets . | . . . . . . Shots Hit Robots 8 | . . . . 2 6 Core Hits 33 | 1 . . . 4 28 Critical Kills . | . . . . . . Critical Parts Destroyed . | . . . . . . Critical Strikes . | . . . . . . Melee Attacks . | . . . . . . Impact . | . . . . . . Slashing . | . . . . . . Piercing . | . . . . . . Sneak Attacks . | . . . . . . Combat Hostiles . | . . . . . . Follow-up Attacks . | . . . . . . Damage Inflicted 846 | 12 2 . . 178 654 Guns 51 | . . . . 14 37 Cannons 44 | . . . . . 44 Explosions 721 | . . . . 161 560 Melee . | . . . . . . Ramming 30 | 12 2 . . 3 13 Kinetic 51 | . . . . 14 37 Thermal . | . . . . . . Explosive 721 | . . . . 161 560 Electromagnetic 44 | . . . . . 44 Impact . | . . . . . . Slashing . | . . . . . . Piercing . | . . . . . . Highest Corruption . | . . . . . . Average Corruption . | . . . . . . Corruption Purged . | . . . . . . Corruption Blocked . | . . . . . . Overload Shots . | . . . . . . Overflow Damage 25 | . . . . . 25 Projectiles . | . . . . . . Explosions 25 | . . . . . 25 Melee . | . . . . . . Knockbacks . | . . . . . . Impact . | . . . . . . Kinetic . | . . . . . . Secondary . | . . . . . . Self-Inflicted Damage 50 | . . . . . 50 Shots 1 | . . . . . 1 Rammed 10 | 6 1 . . 1 2 Targets Rammed 10 | 6 1 . . 1 2 Kicked . | . . . . . . Crushed . | . . . . . . Highest Temperature 197 | . . . . 9 197 Average Temperature 61 | . . . . 5 65 Received Heat Transfer 1044 | . 6 . . 63 975 Siege Activations . | . . . . . . Martial Activations . | . . . . . . Shielding Activations . | . . . . . . Robots Disrupted . | . . . . . . Combat Hostiles . | . . . . . . Robots Corrupted . | . . . . . . Combat Hostiles . | . . . . . . Parts Fried . | . . . . . . Impact Corruptions . | . . . . . . Robots Melted . | . . . . . . Combat Hostiles . | . . . . . . Parts Melted . | . . . . . . Heat Transferred . | . . . . . . Parts Sabotaged . | . . . . . . Parts Stolen . | . . . . . . Parts Stripped . | . . . . . . Power Chain Reactions . | . . . . . . Alert | -11 -10 -10 -10 -9 -8 ------- Run | Yrd Mat Min Exi Min Mat Maximum Alert Level . | . . . . . . Low Security (%) 100 | 100 100 100 . 100 100 Level 1 . | . . . . . . Level 2 . | . . . . . . Level 3 . | . . . . . . Level 4 . | . . . . . . Level 5 . | . . . . . . High Security . | . . . . . . Max Security . | . . . . . . Peak Influence 154 | . . . . 85 154 Initial . | . . . . . . Average 10 | . . . . 37 10 Influence Increases 362 | . . . . 85 277 Destroy 0b10 Robot/C 160 | . . . . 60 100 Destroy 0b10 Robot/NC 25 | . . . . . 25 Destroy Leader 30 | . . . . 10 20 Disable Machine 30 | . . . . . 30 Destroy Structure 57 | . . . . 15 42 Lose Combat Pursuer 60 | . . . . . 60 Influence Decreases 338 | . . . . 85 253 Time Decay 178 | . . . . 85 93 Lost Part 160 | . . . . . 160 Squads Dispatched 5 | . 1 . . . 4 Investigation 1 | . 1 . . . . Extermination . | . . . . . . Reinforcement 4 | . . . . . 4 Assault . | . . . . . . Garrison . | . . . . . . Intercept . | . . . . . . Searches Triggered . | . . . . . . Construction Impeded 1 | . . . . . 1 Haulers Reinforced . | . . . . . . Active Scanning Responses . | . . . . . . Cargo Convoy Interrupts . | . . . . . . Stealth | -11 -10 -10 -10 -9 -8 --------- Run | Yrd Mat Min Exi Min Mat Distress Signals 2 | . 1 . . . 1 Communications Jammed . | . . . . . . Distress Signals . | . . . . . . Times Spotted 30 | . 3 . . 3 24 Peak Tracking Total 10 | . 6 . . 3 10 Tactical Retreats 3 | . . . . . 3 Traps | -11 -10 -10 -10 -9 -8 ------- Run | Yrd Mat Min Exi Min Mat Traps Triggered 2 | . 1 . . . 1 Indirectly . | . . . . . . Trap Hack Attempts . | . . . . . . Triggered . | . . . . . . Disarmed . | . . . . . . Reprogrammed . | . . . . . . Reused . | . . . . . . Traps Extracted . | . . . . . . Installed . | . . . . . . Triggered . | . . . . . . Machines | -11 -10 -10 -10 -9 -8 ---------- Run | Yrd Mat Min Exi Min Mat Machines Disabled 2 | . . . . . 2 Max in Single Turn 1 | . . . . . 1 Machines Repaired . | . . . . . . Machines Dismantled . | . . . . . . Machines Sabotaged . | . . . . . . Overloaded Fab Kills . | . . . . . . Hacking | -11 -10 -10 -10 -9 -8 --------- Run | Yrd Mat Min Exi Min Mat Machines Accessed 8 | . 1 . 4 . 3 Terminals 4 | . 1 . . . 3 Fabricators . | . . . . . . Repair Stations . | . . . . . . Recycling Units . | . . . . . . Scanalyzers . | . . . . . . Garrison Access . | . . . . . . Total Hacks 57 | . 3 . 49 . 5 Successful 52 | . . . 49 . 3 Failed 5 | . 3 . . . 2 Catastrophic 1 | . . . . . 1 Database Lockouts . | . . . . . . Manual 1 | . . . 1 . . Terminals 8 | . 3 . . . 5 Fabricators . | . . . . . . Repair Stations . | . . . . . . Recycling Units . | . . . . . . Scanalyzers . | . . . . . . Garrison Access . | . . . . . . Terminal Hacks 52 | . . . 49 . 3 Record 49 | . . . 49 . . Recall Investigation 1 | . . . . . 1 Recall Reinforcements 1 | . . . . . 1 Zone Layout 1 | . . . . . 1 Fabricator Hacks . | . . . . . . Repair Station Hacks . | . . . . . . Recycling Unit Hacks . | . . . . . . Scanalyzer . | . . . . . . Garrison Access Hacks . | . . . . . . Unauthorized Hacks . | . . . . . . Terminals . | . . . . . . Fabricators . | . . . . . . Repair Stations . | . . . . . . Recycling Units . | . . . . . . Scanalyzers . | . . . . . . Garrison Access . | . . . . . . Data Cores Recovered . | . . . . . . Used . | . . . . . . Hacking Detections 2 | . 1 . . . 1 Full Trace Events 2 | . 1 . . . 1 Feedback Events . | . . . . . . Feedback Blocked . | . . . . . . Robot Schematics Acquired . | . . . . . . Robots Built . | . . . . . . Authchips . | . . . . . . Time . | . . . . . . Total Robot Build Rating . | . . . . . . Part Schematics Acquired . | . . . . . . Parts Built . | . . . . . . Authchips . | . . . . . . Time . | . . . . . . Total Part Build Rating . | . . . . . . Parts Repaired . | . . . . . . Time . | . . . . . . Parts Recycled . | . . . . . . Recycled Matter . | . . . . . . Retrieved Matter . | . . . . . . Retrieved Components . | . . . . . . Parts Scanalyzed . | . . . . . . Part Schematics Acquired . | . . . . . . Parts Damaged . | . . . . . . Bothacking | -11 -10 -10 -10 -9 -8 ------------ Run | Yrd Mat Min Exi Min Mat Used RIF Installer . | . . . . . . Robots Hacked . | . . . . . . Non-combat . | . . . . . . Combat . | . . . . . . Robot Hacks Applied . | . . . . . . Relay Couplers Released . | . . . . . . Fabnet Peak Effective % . | . . . . . . Robots Rewired . | . . . . . . Allies Hacked . | . . . . . . Hacks Repelled . | . . . . . . Allies | -11 -10 -10 -10 -9 -8 -------- Run | Yrd Mat Min Exi Min Mat Total Allies 1 | . . 1 . . . Largest Group 1 | . . 1 1 . . Highest-Rated Group 31 | . . 31 31 . . Highest-Rated Ally 31 | . . 31 31 . . Total Orders . | . . . . . . Ally Attacks . | . . . . . . Total Damage . | . . . . . . Kills . | . . . . . . Allies Corrupted . | . . . . . . Allies Melted . | . . . . . . Intel | -11 -10 -10 -10 -9 -8 ------- Run | Yrd Mat Min Exi Min Mat Active Infowar (turns) 755 | . . . 3 194 558 T.N.C. 755 | . . . 3 194 558 Robot Analysis Total . | . . . . . . Derelict Logs Recovered 1 | . . . . 1 . Drone Launches . | . . . . . . Drone Recoveries . | . . . . . . Exploration | -11 -10 -10 -10 -9 -8 ------------- Run | Yrd Mat Min Exi Min Mat Turns Passed 2695 | 123 48 329 1443 194 558 Spaces Moved 1751 | 69 30 202 900 112 438 Core 265 | 5 . . . . 260 Treads 1308 | 64 30 202 900 112 . Legs 76 | . . . . . 76 Wheels . | . . . . . . Hover . | . . . . . . Flight 102 | . . . . . 102 Fastest Speed 31 | 50 160 160 160 160 31 Average Speed 147 | 152 160 160 160 160 111 Slowest Speed 250 | 160 160 160 160 160 250 Overloaded Moves . | . . . . . . Propulsion Burnouts . | . . . . . . Robots Hopped . | . . . . . . Potential Cave-ins 3 | . . . . . 3 Cave-ins Triggered . | . . . . . . Exploration Rate (%) 36 | 5 15 43 92 29 34 Regions Visited 5 Branch Regions 3 Pre-discovered Areas 1 | . . . 1 . . Known Exits Taken . | . . . . . . Unknown Exits Taken 5 | 1 1 1 1 1 . Scrap Searched 3 | . . 2 . 1 . Spaces Dug . | . . . . . . Terrain Destroyed 79 | . . . . 29 50 Melee . | . . . . . . Projectile . | . . . . . . AOE 79 | . . . . 29 50 Terrain Rammed . | . . . . . . Walls Destroyed . | . . . . . . Machines Disabled . | . . . . . . Actions | -11 -10 -10 -10 -9 -8 --------- Run | Yrd Mat Min Exi Min Mat Total 1825 | 81 30 207 904 121 482 Wait . | . . . . . . Move 1746 | 68 29 201 899 111 438 Hop . | . . . . . . Pick Up 13 | 1 . 4 1 3 4 Fast Attach 24 | 6 . 1 . . 17 Attach 9 | . . . 1 . 8 Detach . | . . . . . . Swap 3 | . . 1 . 1 1 Drop 7 | . . . 2 2 3 Fire 12 | . . . . 3 9 Melee . | . . . . . . Ram 2 | . . . . . 2 Kick . | . . . . . . Crush 8 | 6 1 . . 1 . Escape Stasis . | . . . . . . Rewire 1 | . . . 1 . . Trap . | . . . . . . Miscellaneous . | . . . . . . Route ------- -11/Scrapyard -10/Materials -10/Mines -10/Exiles -9/Mines -8/Materials History --------- Turn | Location | Event 20 | -11/Scrapyard | Discovered new exit (range 15) 124 | -11/Scrapyard | Entered Materials 150 | -10/Materials | Discovered new exit (range 14) 172 | -10/Materials | Entered Mines 215 | -10/Mines | Received a Rocket Launcher from a helpful Derelict 304 | -10/Mines | Received a Mining Laser from a helpful Derelict 307 | -10/Mines | Build established: Mutant 493 | -10/Mines | Deemed a non-threat by the Exiles lab entrance 493 | -10/Mines | Discovered new exit (range 5) 501 | -10/Mines | Entered Exiles 501 | -10/Exiles | Accompanied by 1 ally 540 | -10/Exiles | Met 8R-AWN 567 | -10/Exiles | Met EX-HEX 631 | -10/Exiles | Met EX-DEC 696 | -10/Exiles | Visited The Gauntlet 916 | -10/Exiles | Met EX-BIN 991 | -10/Exiles | Learned location of Zion (-7) 1297 | -10/Exiles | Discovered new exit (range 12) 1733 | -10/Exiles | Aligned with FarCom system 1734 | -10/Exiles | Given EX-Vault access code 1781 | -10/Exiles | Opened EX-Vault 1789 | -10/Exiles | Found Prototype Processor 1823 | -10/Exiles | Warned to stay clear of 0b10 Research branches 1941 | -10/Exiles | Identified Modified TNC 1944 | -10/Exiles | Left Exiles lab with Modified TNC 1944 | -10/Exiles | Entered Mines 1948 | -9/Mines | Met a Derelict bent on vengeance 2043 | -9/Mines | Assembled infested the area 2048 | -9/Mines | Assisted by a Guerilla fighting off Assembled 2077 | -9/Mines | Learned Materials interactive machine intel 2122 | -9/Mines | Discovered new exit (range 10) 2138 | -9/Mines | Entered Materials 2138 | -8/Materials | Evolved 4 slots: Power x2, Propulsion x2 2139 | -8/Materials | Loaded intel: 19 interactive machine locations 2274 | -8/Materials | Core integrity fell below 50% 2348 | -8/Materials | Core integrity fell below 20% 2350 | -8/Materials | Lost 18 parts (6p6n2u4w) 2696 | -8/Materials | Destroyed by Y-45 Defender with Beam Rifle Last Messages --------------- Acquired Lgt. Nuclear Core. Acquired Imp. Power Shielding. Connecting with Terminal... >>Layout(Zone) Retrieving Zone 8C layout... Downloaded map data. Acquired Xenon Bombardment Thruster. S-10 Pest destroyed. Acquired Xenon Bombardment Thruster. S-10 Pest destroyed. Dropped EM Pulse Cannon. Dropped Mining Laser. ALERT: Suspicious intruders detected, dispatching Cutter reinforcements to area. Acquired Gauss Rifle. Acquired 15 matter. Acquired 31 matter. Acquired Nuclear Core. O-16 Technician: "IFF HANDSHAKE FAILED. SECURING TERMINAL." Map ----- +----------------------------------------------------+ | ???????????????????????##### #?# # | | ???????????????????????#!! #######+## | | ???????????????????????#!! | | ???????????????????????# a | | ???????????????????????# ]| ########## | | ???????????????????????#[ == ######/#####???# | | ???????????????????????#[ * [ #?# #???# | | ???????????????????????#####== #?# #???# | | ???????????????????????????# #?# """ #???# | | ???????????????????????????# #?#""""" #???# | | ???????????????????????????# #?#""""" [ #???# | | ???????????????????????????# #?#""""" #???# | | ???????????????????????????# #?# """ #???# | | ???????????????????????????# #?# #???# | | ???????????????????????????# #?# ! #???#### | | ???????????????????????????# #?##########??????? | | ???????????????????????????# ^ #?????????????????? | | ???????????????????????????# ^^#?????????????????? | | ???????????????????????????# #?????????????????? | | ???????????????????????????# #?????????????????? | | ???????????????????????????# #?????????????????? | | ???????????????????????????# #?????????????????? | | ???????????????????????????# #?????????????????? | | ???????????????????????????# #?????????????????? | | ??????????????##+########### #?????????????????? | | ?????????? @ #?????????????????? | | ??????????Y #?????????????????? | | ?????????? #?????? ??????????? | | ??????????? ###+########### #?????? ??#???????? | | ?????????????????????# ! # #?????? " #???????? | | ""???????????????????#] + #?????? T #???????? | | T"???????????????????#] # #?????? " #???????? | | ""???????????????????# !# #?????? ????????? | | ?????????????????????# # #######+########### | | ?????????????????????####### o | | ??????????????????????????## | | ??????????????????? | | ?????????????????????############## ######+#### | | ??????????????????????????????????# #?????????? | | ??????????????????????????????????# #?????????? | | ??????????"""???????????########### #?????????? | | ??????????"T"??????????+ #?????????? | | ????????????????""????w???### ###???????? | | ????????????????""??????????# """ ""#???????? | | ????????????????"T??????????# """ T"#???????? | | ????????????????""??????????# """ [ ""#???????? | | ????????????????""??????????# """ ###???????? | | ????????????????????????????# #?????????? | | ????????????????????????????+ #?????????# | | ????????????????????????????# #????????? | +----------------------------------------------------+ Best States ------------- Heat Dissipation 31 Energy Generation 24 Energy Capacity 540 Matter Stores 300 Matter Capacity 450 Sight Range 16 Terrain Scan Density 10 Armor Coverage 150 Power Shielding 66 Propulsion Shielding 33 Evasion (%) 63 Recoil Reduction 2 Item Schematics ----------------- None Robot Schematics ------------------ None Fabricated ------------ Nothing Repaired ---------- Nothing Alien Tech Used ----------------- None Achievements -------------- None Challenges ------------ None Game ------ Seed HackingSigixSword Manual? 0 Play Time 00:29:11 Cumulative 6.5 hours Start 2025.07.31 @ 08:57:38 End 2025.07.31 @ 09:23:55 Sessions 1 Manual Loads 0 Difficulty Rogue Special Mode None Game No. 11 Rogue 9 Adventurer 0 Explorer 2 Win Type - Total 0 Types 0/0/0/0/0/0/0/0/0/0 Lore% 9 Gallery% 14 Achievement% 16 Wizard Run 0 Options --------- Layout 1 ASCII 0 Keyboard 0 Movement Numpad Keybinds 0 Fullscreen 1 Font 24/Smallcaps Map View 50x35 Zoom Use 0% Tactical HUD 0 Map Filters NONE Filters NONE Steam 1 RUN: 48cd9ec6-a6b6-4f7e-bb26-7246ddc1eefa